[Event "Prague Open 2024"]
[Site "Prague"]
[Date "2024.01.05"]
[Round "1.20"]
[White "Brnusak, Tomas"]
[Black "Zemek, Antonin"]
[Result "1-0"]
[ECO "C17"]
[WhiteElo "2229"]
[BlackElo "1841"]
[Annotator "RC"]
[PlyCount "93"]
[EventDate "2024.01.02"]
[EventType "swiss"]
[EventCountry "CZE"]
[SourceTitle "playchess.com"]
[Source "ChessBase"]
[SourceQuality "1"]
[TimeControl "40/5400+30:1800+30"]

1. e4 {[%emt 0:00:03]} e6 {[%emt 0:00:10]} 2. d4 {[%emt 0:00:34]} d5 {[%emt 0:00:10]} 3. Nc3 {[%emt 0:00:06]} Bb4 {[%emt 0:00:38]} 4. e5 {[%emt 0:00:18]} c5 {[%emt 0:00:52]} 5. Bd2 {[%emt 0:00:06]} Nc6 {[%emt 0:04:11]} 6. Nb5 {[%emt 0:00:51]} Nge7 {[%emt 0:07:30]} 7. c3 {[%emt 0:12:01]} Ba5 {[%emt 0:02:30]} 8. Nd6+ {[%emt 0:00:55]} Kf8 {[%emt 0:03:47]} 9. Qf3 {[%emt 0:04:36]} Nf5 {[%emt 0:01:22]} 10. Nxf5 {[%emt 0:01:59]} exf5 {[%emt 0:01:14]} 11. dxc5 {[%emt 0:01:26]} Nxe5 {[%emt 0:04:17]} 12. Qe3 {[%emt 0:03:02]} Qf6 {[%emt 0:11:23]} 13. Qd4 {[%emt 0:05:51]} Be6 {[%emt 0:04:21]} 14. Nh3 {[%emt 0:09:33]} Re8 {[%emt 0:08:56]} 15. O-O-O {[%emt 0:02:54]} h6 {[%emt 0:07:13]} 16. b3 {[%emt 0:10:09]} Nd7 {[%emt 0:02:40]} 17. Bb5 {[%emt 0:08:10]} Qxd4 {[%emt 0:09:32]} 18. cxd4 {[%emt 0:00:24]} Bxd2+ {[%emt 0:00:24]} 19. Kxd2 {[%emt 0:00:28]} g5 {[%emt 0:00:37]} 20. Rhe1 {[%emt 0:01:28]} Rd8 {[%emt 0:07:17]} 21. f4 {[%emt 0:03:54]} Nf6 {[%emt 0:03:04]} 22. Bd3 {[%emt 0:03:18]} g4 {[%emt 0:02:48]} 23. Nf2 {[%emt 0:03:45]} Ne4+ {[%emt 0:03:27]} 24. Bxe4 {[%emt 0:00:28]} fxe4 {[%emt 0:00:12]} 25. Rc1 {[%emt 0:00:11]} Rc8 {[%emt 0:01:01]} 26. Rc3 {[%emt 0:00:44]} b5 {[%emt 0:04:09]} 27. cxb6 {[%emt 0:00:30]} Rxc3 {[%emt 0:00:30]} 28. Kxc3 axb6 {[%emt 0:00:14]} 29. Kb4 {[%emt 0:09:51]} Ke7 {[%emt 0:00:28]} 30. Rc1 {[%emt 0:00:05]} Kd6 {[%emt 0:01:39]} 31. Nd1 {[%emt 0:00:31]} Ra8 {[%emt 0:02:10]} 32. a4 {[%emt 0:00:06]} Bd7 {[%emt 0:00:05]} 33. Ne3 {[%emt 0:00:08]} f5 {[%emt 0:00:52]} 34. Rc2 {[%emt 0:01:25]} h5 {[%emt 0:00:46]} 35. Ra2 {[%emt 0:03:00]} Ra5 {[%emt 0:01:16]} 36. h3 {[%emt 0:00:37]} Ke6 {[%emt 0:02:14]} 37. hxg4 {[%emt 0:00:19]} hxg4 {[%emt 0:00:40]} 38. g3 {[%emt 0:00:09]} Kf6 {[%emt 0:01:03]} 39. Rh2 {[%emt 0:00:07]} Kg7 {[%emt 0:01:31]} 40. Rh1 {[%emt 0:01:46]} Be6 {[%emt 0:01:15]} 41. Rc1 {[%emt 0:30:06]} Ra8 {[%emt 0:30:51]} 42. Rc6 {[%emt 0:01:44]} Kf7 {[%emt 0:00:00]} 43. Rxb6 {[%emt 0:00:00]} Rh8 {[%emt 0:00:00]} 44. a5 {[%emt 0:00:00]} Rh3 {[%emt 0:00:00]} 45. a6 {[%emt 0:00:00]} Rxg3 {[%emt 0:00:00]} 46. a7 {[%emt 0:00:00]} Rxe3 {[%emt 0:00:00]} 47. a8=Q {[%emt 0:00:00]} 1-0

[Event "Prague Open 2024"]
[Site "Prague"]
[Date "2024.01.06"]
[Round "2.1"]
[White "Agdestein, Simen"]
[Black "Svobodova, Michaela"]
[Result "1-0"]
[ECO "B10"]
[WhiteElo "2568"]
[BlackElo "1979"]
[Annotator "TA"]
[PlyCount "89"]
[EventDate "2024.01.02"]
[EventType "swiss"]
[EventCountry "CZE"]
[SourceTitle "playchess.com"]
[Source "ChessBase"]
[SourceQuality "1"]
[TimeControl "40/5400+30:1800+30"]

{[%evp 9,89,8,36,19,39,34,36,34,27,34,54,39,50,17,42,15,67,56,66,72,65,12,50,68,104,73,71,61,93,99,98,94,110,118,158,138,218,210,210,200,213,201,216,206,202,211,209,206,199,206,294,305,302,301,303,294,358,353,397,394,385,402,347,270,525,525,519,520,658,658,1046,1046,1210,1202,8302,8302,6602,5389,29980,29981,29981,29982]} 1. c4 {[%emt 0:00:59]} c6 {[%emt 0:01:32]} 2. e4 {[%emt 0:00:18]} d5 {[%emt 0:01:55]} 3. exd5 {[%emt 0:00:22]} cxd5 {[%emt 0:01:05]} 4. cxd5 {[%emt 0:00:55]} Nf6 {[%emt 0:02:07]} 5. Qa4+ {[%emt 0:03:10]} Bd7 {[%emt 0:08:37]} 6. Qb3 {[%emt 0:00:24] B10: Caro-Kann: 2 d3 and 2 c4.} Qb6 {[%emt 0:01:49]} 7. Nc3 {[%emt 0:09:30][%cal Od2d4]} Na6 {[%emt 0:06:22]} 8. Bxa6 $5 {[%emt 0:05:14][%mdl 4] White is slightly better. Exploring less charted territory.} Qxa6 {[%emt 0:03:48]} 9. Nge2 {[%emt 0:06:30]} g6 {[%emt 0:03:50]} 10. O-O {[%emt 0:01:49]} Bg7 {[%emt 0:01:13]} 11. d4 {[%emt 0:04:39]} O-O {[%emt 0:02:31]} 12. Bf4 {[%emt 0:00:59] [#]} Rfd8 $146 {[%emt 0:07:54]} (12... Bf5 $11) ({Predecessor:} 12... b5 13. Rfe1 Rfe8 14. Be5 Qb6 15. Ng3 a5 16. a4 b4 17. Nce4 Rac8 18. h3 Qb7 {1-0 Rey Besada,F (2211)-Lopez,C (1815) Villa Martelli Pro Am op 15th 2008 (9.21)}) 13. Bc7 $14 {[%emt 0:04:25]} Rdc8 {[%emt 0:03:11]} 14. Be5 {[%emt 0:00:08]} Rc4 {[%emt 0:04:07]} 15. a4 {[%emt 0:07:48]} (15. Rfe1 $14) 15... Rd8 {[%emt 0:06:14]} (15... Ng4 $5 {[%cal Rg4e5]}) 16. Rfe1 {[%emt 0:07:27][%cal Od5d6]} Rcc8 {[%emt 0:08:23] Prevents d6.} 17. a5 {[%emt 0:06:17]} Bf5 {[%emt 0:05:25]} 18. Nf4 {[%emt 0:11:09]} Rd7 {[%emt 0:05:46] White leaves nothing to chance now.} 19. h3 {[%emt 0:02:21]} g5 {[%emt 0:02:56] [#]} 20. Nfe2 {[%emt 0:02:46]} Bd3 {[%emt 0:05:35]} 21. Ng3 {[%emt 0:04:13]} Qc4 {[%emt 0:04:53]} 22. Qd1 {[%emt 0:02:35][%cal Od5d6] And now d6! would win.} Nxd5 {[%emt 0:02:38]} (22... Bg6 $16 {is a better defense.}) 23. Qg4 {[%emt 0:01:51]} Rcd8 {[%emt 0:02:58]} 24. Bxg7 {[%emt 0:01:03]} (24. Qxg5 $2 {perishes.} f6 25. Qg4 fxe5 $19) (24. Nxd5 $6 Rxd5 25. Bxg7 (25. Qxg5 $2 f6 $19 {[%mdl 64] Deflection, Double Attack}) 25... Kxg7 $16) 24... Kxg7 {[%emt 0:03:07]} 25. Qxg5+ {[%emt 0:00:08]} Kh8 {[%emt 0:01:05]} 26. Nxd5 {[%emt 0:02:21]} Qxd5 {[%emt 0:02:40]} 27. Qxd5 {[%emt 0:00:26]} Rxd5 {[%emt 0:00:02]} 28. Rxe7 $40 {[%emt 0:00:06][%mdl 128] White wants a kill.} R8d7 {[%emt 0:01:51]} 29. Rae1 {[%emt 0:06:50]} Rxd4 {[%emt 0:00:07]} (29... Rxe7 {was necessary.} 30. Rxe7 Kg7 31. Rxb7 Rxa5) 30. Nh5 $18 {[%emt 0:00:52][%cal Re7e8]} Rxe7 {[%emt 0:01:11]} 31. Rxe7 {[%emt 0:00:03][%cal Re7e8][%mdl 4096] Endgame KRB-KRN} h6 {[%emt 0:00:27]} 32. Rxb7 {[%emt 0:01:06]} Bg6 {[%emt 0:00:34]} 33. Nf6 {[%emt 0:00:55]} Kg7 {[%emt 0:00:10]} 34. Ng4 {[%emt 0:00:24]} Rd1+ {[%emt 0:00:46]} 35. Kh2 {[%emt 0:00:03]} Rd2 {[%emt 0:00:08]} 36. f3 {[%emt 0:03:05] Prevents Be4} ({Don't play} 36. Rxa7 Rxb2 37. Kg3 Re2) 36... h5 $2 {[%emt 0:00:56]} (36... Re2 37. Kg1 (37. Rxa7 h5 $16) 37... h5) 37. Ne5 {[%emt 0:00:34]} Kf6 {[%emt 0:00:19]} 38. Nxg6 {[%emt 0:01:44]} fxg6 {[%emt 0:00:05] KR-KR} 39. b4 {[%emt 0:00:56][%cal Bb2b4,Bb4b5][%mdl 32]} Rb2 {[%emt 0:00:45]} 40. b5 {[%emt 0:00:54][%cal Ob5b6] Strongly threatening b6!} Kg5 {[%emt 0:00:40]} 41. a6 {[%emt 0:10:15][%cal Ba5a6,Ba6a7][%mdl 32]} h4 {[%emt 0:08:55]} 42. Rxa7 {[%emt 0:00:38]} Rxb5 {[%emt 0:00:21]} 43. Ra8 {[%emt 0:00:25] White threatens a7 and mate.} Ra5 {[%emt 0:00:40]} 44. a7 {[%emt 0:00:15]} Ra1 {[%emt 0:01:45] [#]} 45. f4+ $1 {[%emt 0:00:32][%mdl 64] Promotion.   Weighted Error Value: White=0.08 (flawless) /Black=0.45} 1-0

[Event "Prague Open 2024"]
[Site "Prague"]
[Date "2024.01.06"]
[Round "2.2"]
[White "Durana, Jonas"]
[Black "Poetsch, Hagen"]
[Result "0-1"]
[ECO "B23"]
[WhiteElo "1977"]
[BlackElo "2471"]
[Annotator "TA"]
[PlyCount "66"]
[EventDate "2024.01.02"]
[EventType "swiss"]
[EventCountry "CZE"]
[SourceTitle "playchess.com"]
[Source "ChessBase"]
[SourceQuality "1"]
[TimeControl "40/5400+30:1800+30"]

{[%evp 9,66,-22,-26,-13,-24,-23,-25,-22,-26,-25,-15,-34,-20,-22,0,0,0,-16,9,12,15,-8,-17,-10,18,0,12,-81,-75,-81,-75,-82,-62,-79,-79,-87,-83,-73,-73,-207,-183,-437,-470,-454,-415,-404,-413,-406,-349,-336,-334,-351,-330,-397,-350,-410,-335,-314,-312]} 1. e4 c5 2. Nc3 e6 3. f4 d5 4. d3 Nc6 5. Nf3 g6 6. g3 {B23: Closed Sicilian: Lines without g3.} Bg7 7. Bd2 Nge7 8. Bg2 {Black has an edge.} O-O 9. Rb1 b6 10. O-O Ba6 11. Re1 d4 12. Ne2 {[#]} Rc8 $146 ({Predecessor:} 12... c4 13. dxc4 Bxc4 14. b3 Ba6 15. Nc1 Rc8 16. Nd3 Qd6 17. a4 Rfd8 18. b4 Bb7 {0-1 Di Paolo,M (1926)-Suarez Gomez,J (2474) Andorra op 35th 2017 (1)}) 13. b3 {[%cal Bb2b3,Bb3b4][%mdl 32]} b5 (13... f5 $5 {[%cal Rf5e4]}) 14. g4 c4 15. b4 c3 16. Bc1 Bb7 17. Ng3 a5 18. Ba3 (18. bxa5 $11 {keeps the balance.} Qxa5 19. f5) 18... axb4 $17 19. Bxb4 Nxb4 20. Rxb4 Bc6 21. Ne2 {[%cal Re2d4]} Qb6 22. Qb1 (22. Nfxd4 $2 {too greedy.} Bxd4+ 23. Nxd4 Rfd8 $19) (22. Nexd4 $2 Rfd8 23. Qc1 Bxd4+ $19) 22... Qa7 23. Kh1 {[%cal Rf3d4]} (23. Nfxd4 $2 {is the wrong capture.} Rfd8 24. e5 Nd5 25. Bxd5 Bxd5 $19) 23... Rfd8 {Black is more active.} 24. e5 {This move loses the game for White.} (24. a3 $17 {is a better defense.}) 24... Nd5 $19 25. Nfxd4 $2 {[#]} (25. Rxd4 {was the only chance.} Bf8 26. Ng5) 25... Nxb4 26. Qxb4 Bxg2+ 27. Kxg2 Bf8 ({Worse is} 27... Qxa2 28. Qxb5 Bf8 29. Qb1 Qd5+ 30. Kg3 $17) 28. Qxb5 Rxd4 29. Nxd4 Qxd4 30. Re4 Qd8 31. a4 Rb8 32. Qc4 Qd5 33. Qxc3 Rb4 {Weighted Error Value: White=0.33/Black=0.13 (very precise)} 0-1

[Event "Prague Open 2024"]
[Site "Prague"]
[Date "2024.01.06"]
[Round "2.3"]
[White "Shagbazyan, Taron"]
[Black "Dushatov, Timur"]
[Result "0-1"]
[ECO "A40"]
[WhiteElo "2403"]
[BlackElo "1976"]
[Annotator "RC"]
[PlyCount "90"]
[EventDate "2024.01.02"]
[EventType "swiss"]
[EventCountry "CZE"]
[SourceTitle "playchess.com"]
[Source "ChessBase"]
[SourceQuality "1"]
[TimeControl "40/5400+30:1800+30"]

1. d4 g6 2. Nf3 Bg7 3. Bf4 Nf6 4. e3 d6 5. h3 O-O 6. Be2 Nfd7 7. O-O Nc6 8. c4 e5 9. Bg3 h6 10. Nc3 f5 11. dxe5 dxe5 12. Nd5 g5 13. Qc2 Ne7 14. Rfd1 c6 15. Nc3 Qe8 16. b4 Ng6 17. Nd2 Nf6 18. c5 f4 19. exf4 gxf4 20. Bh2 Nh4 21. f3 Bf5 22. Bc4+ Kh8 23. Nde4 Qh5 24. Qf2 Bxe4 25. Nxe4 Nf5 26. Rac1 Nxe4 27. fxe4 Nd4 28. Kh1 Rad8 29. Bf1 Bf6 30. Bg1 Rg8 31. Rd3 f3 32. Bh2 fxg2+ 33. Bxg2 Bh4 34. Qb2 Rgf8 35. Rcd1 Rf2 36. R3d2 Qxd1+ 37. Rxd1 Rxb2 38. Bxe5+ Kg8 39. Rxd4 Rxd4 40. Bxd4 Rxb4 41. Be5 Kf7 42. Bf3 Bf6 43. Bd6 Be7 44. Bh5+ Kf8 45. e5 Bxd6 0-1

[Event "Prague Open 2024"]
[Site "Prague"]
[Date "2024.01.06"]
[Round "2.4"]
[White "Striskova, Lucia"]
[Black "Neuman, Petr"]
[Result "0-1"]
[ECO "B57"]
[WhiteElo "1975"]
[BlackElo "2398"]
[Annotator "RC"]
[PlyCount "132"]
[EventDate "2024.01.02"]
[EventType "swiss"]
[EventCountry "CZE"]
[SourceTitle "playchess.com"]
[Source "ChessBase"]
[SourceQuality "1"]
[TimeControl "40/5400+30:1800+30"]

1. e4 {[%emt 0:00:21]} c5 {[%emt 0:00:45]} 2. Nf3 {[%emt 0:00:34]} d6 {[%emt 0:00:08]} 3. d4 {[%emt 0:00:39]} cxd4 {[%emt 0:00:05]} 4. Nxd4 {[%emt 0:00:53]} Nf6 {[%emt 0:00:07]} 5. Nc3 {[%emt 0:00:13]} Nc6 {[%emt 0:00:07]} 6. Bc4 {[%emt 0:02:13]} Bd7 {[%emt 0:00:20]} 7. Be3 {[%emt 0:04:29]} Ng4 {[%emt 0:01:01]} 8. Nxc6 {[%emt 0:08:31]} bxc6 {[%emt 0:00:45]} 9. Qf3 {[%emt 0:07:11]} Ne5 {[%emt 0:00:13]} 10. Qe2 {[%emt 0:00:05]} Nxc4 {[%emt 0:00:24]} 11. Qxc4 {[%emt 0:00:08]} e6 {[%emt 0:05:26]} 12. O-O {[%emt 0:02:38]} Be7 {[%emt 0:00:23]} 13. Qd4 {[%emt 0:05:05]} O-O {[%emt 0:00:38]} 14. e5 {[%emt 0:00:06]} d5 {[%emt 0:01:01]} 15. Na4 {[%emt 0:02:37]} Qc7 {[%emt 0:01:14]} 16. f4 {[%emt 0:08:31]} Rfb8 {[%emt 0:02:25]} 17. Nc5 {[%emt 0:02:53]} Bxc5 {[%emt 0:27:07]} 18. Qxc5 {[%emt 0:00:15]} Rb5 {[%emt 0:00:51]} 19. Qc3 {[%emt 0:04:40]} c5 {[%emt 0:00:32]} 20. a4 {[%emt 0:05:30]} Rb4 {[%emt 0:02:11]} 21. Qxc5 {[%emt 0:01:19]} Qxc5 {[%emt 0:00:22]} 22. Bxc5 {[%emt 0:00:08]} Rxb2 {[%emt 0:00:13]} 23. c3 {[%emt 0:11:17]} a6 {[%emt 0:00:09]} 24. a5 {[%emt 0:01:45]} Rab8 {[%emt 0:03:29]} 25. Rad1 {[%emt 0:05:03]} R8b3 {[%emt 0:05:01]} 26. Bb4 {[%emt 0:03:02]} Bb5 {[%emt 0:00:47]} 27. Rf2 {[%emt 0:06:29]} Rxf2 {[%emt 0:00:51]} 28. Kxf2 {[%emt 0:00:07]} Rb2+ {[%emt 0:00:05]} 29. Kg1 {[%emt 0:01:03]} h5 {[%emt 0:00:14]} 30. h3 {[%emt 0:03:05]} Ra2 {[%emt 0:00:52]} 31. Rd4 {[%emt 0:01:45]} Kh7 {[%emt 0:03:03]} 32. f5 {[%emt 0:05:29]} exf5 {[%emt 0:06:18]} 33. Rf4 {[%emt 0:02:06]} Bd3 {[%emt 0:00:43]} 34. Rf2 {[%emt 0:00:12]} Ra1+ {[%emt 0:00:11]} 35. Kh2 {[%emt 0:00:06]} g5 {[%emt 0:01:48]} 36. h4 {[%emt 0:02:47]} g4 {[%emt 0:00:41]} 37. Kg3 {[%emt 0:00:34]} Kg6 {[%emt 0:01:07]} 38. Rb2 {[%emt 0:00:55]} Rf1 {[%emt 0:03:37]} 39. Rf2 {[%emt 0:01:11]} Re1 {[%emt 0:00:28]} 40. Bd6 {[%emt 0:00:17]} Be4 {[%emt 0:00:26]} 41. Kf4 {[%emt 0:31:05]} Rg1 {[%emt 0:33:59]} 42. Kg3 {[%emt 0:02:12]} f4+ {[%emt 0:00:42]} 43. Kxf4 {[%emt 0:00:00]} Bxg2 {[%emt 0:00:00]} 44. Rb2 {[%emt 0:00:00]} Be4 {[%emt 0:00:00]} 45. Bc5 {[%emt 0:00:00]} Rf1+ {[%emt 0:00:00]} 46. Bf2 {[%emt 0:00:00]} Bf5 {[%emt 0:00:00]} 47. Ke3 {[%emt 0:00:00]} Rh1 {[%emt 0:00:00]} 48. Kf4 {[%emt 0:00:00]} Rh2 {[%emt 0:00:00]} 49. Rb6+ {[%emt 0:00:00]} Be6 {[%emt 0:00:00]} 50. Kg3 {[%emt 0:00:00]} Rh3+ {[%emt 0:00:00]} 51. Kg2 {[%emt 0:00:00]} Rxc3 {[%emt 0:00:00]} 52. Rxa6 {[%emt 0:00:00]} Ra3 {[%emt 0:00:00]} 53. Ra8 {[%emt 0:00:54]} Kf5 {[%emt 0:00:00]} 54. a6 {[%emt 0:03:09]} Ke4 {[%emt 0:00:00]} 55. a7 {[%emt 0:00:47]} d4 {[%emt 0:00:00]} 56. Rd8 {[%emt 0:02:21]} Bd5 {[%emt 0:00:00]} 57. Rd7 {[%emt 0:01:26]} Kxe5+ {[%emt 0:00:00]} 58. Kf1 {[%emt 0:00:06]} f5 {[%emt 0:00:00]} 59. Bg3+ {[%emt 0:00:42]} Ke4 {[%emt 0:00:00]} 60. Re7+ {[%emt 0:00:49]} Kf3 {[%emt 0:00:00]} 61. Be1 {[%emt 0:00:34]} Ra1 {[%emt 0:00:00]} 62. Re5 {[%emt 0:00:39]} Be4 {[%emt 0:00:00]} 63. Ra5 {[%emt 0:00:22]} Bd3+ {[%emt 0:00:00]} 64. Kg1 {[%emt 0:00:12]} Rxe1+ {[%emt 0:00:00]} 65. Kh2 {[%emt 0:00:07]} g3+ {[%emt 0:00:00]} 66. Kh3 {[%emt 0:00:05]} Rh1# 0-1

[Event "Prague Open 2024"]
[Site "Prague"]
[Date "2024.01.06"]
[Round "2.5"]
[White "Sowinski, Pawel"]
[Black "Zielonka, Adam"]
[Result "1-0"]
[ECO "B46"]
[WhiteElo "2357"]
[BlackElo "1966"]
[Annotator "RC"]
[PlyCount "65"]
[EventDate "2024.01.02"]
[EventType "swiss"]
[EventCountry "CZE"]
[SourceTitle "playchess.com"]
[Source "ChessBase"]
[SourceQuality "1"]
[TimeControl "40/5400+30:1800+30"]

1. e4 {[%emt 0:00:04]} c5 {[%emt 0:00:07]} 2. Nf3 {[%emt 0:00:04]} e6 {[%emt 0:00:06]} 3. d4 {[%emt 0:00:04]} cxd4 {[%emt 0:00:04]} 4. Nxd4 {[%emt 0:00:03]} Nc6 {[%emt 0:00:08]} 5. Nc3 {[%emt 0:00:06]} a6 {[%emt 0:00:04]} 6. Nxc6 {[%emt 0:00:06]} bxc6 {[%emt 0:00:04]} 7. Bd3 {[%emt 0:00:05]} d5 {[%emt 0:00:13]} 8. O-O {[%emt 0:00:04]} Nf6 {[%emt 0:00:34]} 9. Re1 {[%emt 0:00:02]} Be7 {[%emt 0:00:27]} 10. e5 {[%emt 0:00:04]} Nd7 {[%emt 0:00:04]} 11. Qg4 {[%emt 0:00:05]} Kf8 {[%emt 0:00:05]} 12. b3 {[%emt 0:02:37]} Bb7 {[%emt 0:01:48]} 13. Na4 {[%emt 0:06:51]} c5 {[%emt 0:00:22]} 14. Qh5 {[%emt 0:06:42]} Kg8 {[%emt 0:01:44]} 15. Bf4 {[%emt 0:08:54]} g6 {[%emt 0:06:22]} 16. Qf3 {[%emt 0:07:54]} Qc7 {[%emt 0:07:32]} 17. c4 {[%emt 0:04:56]} d4 {[%emt 0:01:30]} 18. Qh3 {[%emt 0:11:28]} a5 {[%emt 0:03:51]} 19. Re2 {[%emt 0:04:21]} Nb6 {[%emt 0:03:17]} 20. Bh6 {[%emt 0:08:49]} Ra6 {[%emt 0:26:41]} 21. f4 {[%emt 0:08:28]} Nxa4 {[%emt 0:02:17]} 22. bxa4 {[%emt 0:00:02]} Rb6 {[%emt 0:01:09]} 23. Rf1 {[%emt 0:04:51]} Bf8 {[%emt 0:06:20]} 24. Bg5 {[%emt 0:15:28]} Bg7 {[%emt 0:03:03]} 25. Qh4 {[%emt 0:00:50]} Qc8 {[%emt 0:19:07]} 26. Bf6 {[%emt 0:01:32]} Bxf6 {[%emt 0:03:31]} 27. exf6 {[%emt 0:00:03]} Qf8 {[%emt 0:05:47]} 28. f5 {[%emt 0:00:24]} Bc8 {[%emt 0:00:38]} 29. Rfe1 {[%emt 0:00:32]} Rd6 {[%emt 0:01:02]} 30. Re5 {[%emt 0:02:00]} Rb6 {[%emt 0:01:11]} 31. Qg5 {[%emt 0:01:49]} h6 {[%emt 0:00:52]} 32. Qg3 {[%emt 0:00:11]} g5 {[%emt 0:00:37]} 33. fxe6 {[%emt 0:00:13]} 1-0

[Event "Prague Open 2024"]
[Site "Prague"]
[Date "2024.01.06"]
[Round "2.6"]
[White "Rybackova, Lucie"]
[Black "Ivanov, Mike"]
[Result "0-1"]
[ECO "A46"]
[WhiteElo "1970"]
[BlackElo "2356"]
[Annotator "RC"]
[PlyCount "66"]
[EventDate "2024.01.02"]
[EventType "swiss"]
[EventCountry "CZE"]
[SourceTitle "playchess.com"]
[Source "ChessBase"]
[SourceQuality "1"]
[TimeControl "40/5400+30:1800+30"]

1. d4 {[%emt 0:00:04]} Nf6 {[%emt 0:07:06]} 2. Nf3 {[%emt 0:00:21]} c5 {[%emt 0:00:36]} 3. g3 {[%emt 0:01:34]} cxd4 {[%emt 0:03:11]} 4. Nxd4 {[%emt 0:00:27]} d5 {[%emt 0:00:12]} 5. Nb3 {[%emt 0:05:39]} e5 {[%emt 0:04:51]} 6. Bg2 {[%emt 0:01:19]} Be6 {[%emt 0:11:02]} 7. Nc3 {[%emt 0:09:08]} h6 {[%emt 0:03:14]} 8. O-O {[%emt 0:00:27]} Nc6 {[%emt 0:00:41]} 9. f4 {[%emt 0:16:19]} exf4 {[%emt 0:05:31]} 10. Bxf4 {[%emt 0:00:41]} Qb6+ {[%emt 0:02:22]} 11. Kh1 {[%emt 0:03:35]} Rd8 {[%emt 0:00:16]} 12. Qe1 {[%emt 0:06:03]} d4 {[%emt 0:04:10]} 13. Ne4 {[%emt 0:03:26]} Nd5 {[%emt 0:02:15]} 14. Rd1 {[%emt 0:06:33]} Be7 {[%emt 0:12:03]} 15. Qf2 {[%emt 0:05:02]} Nxf4 {[%emt 0:01:53]} 16. gxf4 {[%emt 0:01:04]} f5 {[%emt 0:02:42]} 17. Ng3 {[%emt 0:04:27]} O-O {[%emt 0:02:24]} 18. Rg1 {[%emt 0:03:20]} Kh7 {[%emt 0:01:13]} 19. Bf3 {[%emt 0:03:06]} g6 {[%emt 0:03:06]} 20. Qg2 {[%emt 0:05:18]} Rg8 {[%emt 0:00:44]} 21. Qf2 {[%emt 0:07:57]} Bf6 {[%emt 0:02:47]} 22. Nf1 {[%emt 0:03:29]} Nb4 {[%emt 0:04:44]} 23. e3 dxe3 {[%emt 0:06:34]} 24. Nxe3 {[%emt 0:04:39]} Bxb3 {[%emt 0:02:21]} 25. axb3 {[%emt 0:00:38]} Bd4 {[%emt 0:00:34]} 26. Rxd4 {[%emt 0:03:27]} Qxd4 {[%emt 0:01:15]} 27. c3 {[%emt 0:00:43]} Nd3 {[%emt 0:00:09]} 28. Qe2 {[%emt 0:00:30]} Nxf4 {[%emt 0:03:39]} 29. cxd4 {[%emt 0:00:17]} Nxe2 {[%emt 0:00:05]} 30. Bxe2 {[%emt 0:00:08]} Rge8 {[%emt 0:00:14]} 31. Bh5 {[%emt 0:01:33]} gxh5 {[%emt 0:00:18]} 32. Nxf5 {[%emt 0:00:07]} Rf8 {[%emt 0:01:24]} 33. Ng7 {[%emt 0:00:34]} Rg8 {[%emt 0:00:23]} 0-1

[Event "Prague Open 2024"]
[Site "Prague"]
[Date "2024.01.06"]
[Round "2.7"]
[White "Gomes, Mary Ann"]
[Black "Shapovalovi, Vasiko"]
[Result "1/2-1/2"]
[ECO "A05"]
[WhiteElo "2332"]
[BlackElo "1965"]
[Annotator "RC"]
[PlyCount "75"]
[EventDate "2024.01.02"]
[EventType "swiss"]
[EventCountry "CZE"]
[SourceTitle "playchess.com"]
[Source "ChessBase"]
[SourceQuality "1"]
[TimeControl "40/5400+30:1800+30"]

1. Nf3 Nf6 2. c4 e6 3. g3 b6 4. Bg2 Bb7 5. b3 Be7 6. Bb2 O-O 7. O-O d5 8. e3 Nbd7 9. Nc3 Ne4 10. cxd5 Nxc3 11. dxc3 Bxd5 12. c4 Bb7 13. Qc2 c5 14. Ng5 Bxg5 15. Bxb7 Rb8 16. Bg2 Bf6 17. Rad1 Qc7 18. Rd2 Rfd8 19. f4 Bxb2 20. Qxb2 Nf6 21. Rfd1 Rxd2 22. Qxd2 Re8 23. h3 Re7 24. Qd8+ Qxd8 25. Rxd8+ Re8 26. Rxe8+ Nxe8 27. Bc6 Nc7 28. e4 f6 29. e5 fxe5 30. fxe5 Na6 31. a3 Nb8 32. Bb5 Kf7 33. Kf2 Ke7 34. Ke3 Kd8 35. h4 Kc7 36. h5 h6 37. g4 Nc6 38. Bxc6 1/2-1/2

[Event "Prague Open 2024"]
[Site "Prague"]
[Date "2024.01.06"]
[Round "2.8"]
[White "Pousada Garcia, Victor Daniel"]
[Black "Berin, Artem"]
[Result "1/2-1/2"]
[ECO "C44"]
[WhiteElo "1965"]
[BlackElo "2327"]
[Annotator "RC"]
[PlyCount "109"]
[EventDate "2024.01.02"]
[EventType "swiss"]
[EventCountry "CZE"]
[SourceTitle "playchess.com"]
[Source "ChessBase"]
[SourceQuality "1"]
[TimeControl "40/5400+30:1800+30"]

1. e4 e5 2. Nf3 Nc6 3. d4 exd4 4. c3 d3 5. Bxd3 Bc5 6. Bg5 Nge7 7. Nbd2 d6 8. h3 a5 9. Nb3 Bb6 10. Nbd4 Ne5 11. Nxe5 dxe5 12. Nf5 Bxf5 13. exf5 f6 14. Qh5+ Kf8 15. O-O-O Qe8 16. Qxe8+ Kxe8 17. Bh4 c6 18. Rhe1 Rd8 19. g4 Kf7 20. Bg3 Nd5 21. Re4 Rhe8 22. Bc4 Kf8 23. h4 Bc7 24. g5 b5 25. Be2 Ne7 26. Bg4 Rd5 27. f4 Rxd1+ 28. Kxd1 exf4 29. Bxf4 Bxf4 30. Rxf4 Nd5 31. Rd4 Ne3+ 32. Kd2 c5 33. Rf4 Nc4+ 34. Kc2 Re1 35. a4 Rg1 36. Be2 Ne3+ 37. Kd3 Nd5 38. Re4 Rg3+ 39. Kd2 bxa4 40. Rxa4 fxg5 41. hxg5 Rxg5 42. Rxa5 Nf4 43. Rxc5 Nxe2 44. Kxe2 Rg2+ 45. Kf3 Rxb2 46. Rc7 Rb1 47. Kg4 Rg1+ 48. Kf4 h5 49. c4 h4 50. Rc8+ Kf7 51. Rh8 Rc1 52. Rxh4 Kf6 53. Rg4 Rxc4+ 54. Kf3 Rc7 55. Kf4 1/2-1/2

[Event "Prague Open 2024"]
[Site "Prague"]
[Date "2024.01.06"]
[Round "2.9"]
[White "Mis, Mieszko"]
[Black "Reichmann, Steffen"]
[Result "1-0"]
[ECO "A41"]
[WhiteElo "2301"]
[BlackElo "1963"]
[Annotator "RC"]
[PlyCount "41"]
[EventDate "2024.01.02"]
[EventType "swiss"]
[EventCountry "CZE"]
[SourceTitle "playchess.com"]
[Source "ChessBase"]
[SourceQuality "1"]
[TimeControl "40/5400+30:1800+30"]

1. d4 {[%emt 0:01:06]} d6 {[%emt 0:00:08]} 2. Nf3 {[%emt 0:01:05]} f5 {[%emt 0:00:09]} 3. g3 {[%emt 0:01:05]} g6 {[%emt 0:00:23]} 4. Bg2 {[%emt 0:00:18]} Nf6 {[%emt 0:00:09]} 5. O-O {[%emt 0:00:19]} Bg7 {[%emt 0:00:07]} 6. Nbd2 {[%emt 0:01:14]} O-O {[%emt 0:01:19]} 7. Re1 {[%emt 0:00:05]} Nc6 {[%emt 0:06:47]} 8. e4 {[%emt 0:08:50]} fxe4 {[%emt 0:15:51]} 9. Nxe4 {[%emt 0:00:08]} Nxe4 {[%emt 0:00:41]} 10. Rxe4 {[%emt 0:00:06]} Bf5 {[%emt 0:01:05]} 11. Rh4 {[%emt 0:04:20]} e5 {[%emt 0:05:21]} 12. Ng5 {[%emt 0:18:40]} e4 {[%emt 0:15:55]} 13. Nxh7 {[%emt 0:05:48]} Bxd4 {[%emt 0:08:01]} 14. Nxf8 {[%emt 0:02:40]} Qxf8 {[%emt 0:00:32]} 15. Be3 {[%emt 0:02:20]} Bf6 {[%emt 0:15:29]} 16. Qd5+ {[%emt 0:00:42]} Qf7 {[%emt 0:00:27]} 17. Qxf7+ {[%emt 0:00:19]} Kxf7 {[%emt 0:00:02]} 18. Rh7+ {[%emt 0:00:06]} Bg7 {[%emt 0:01:06]} 19. Bh6 {[%emt 0:00:08]} Rg8 {[%emt 0:00:02]} 20. g4 {[%emt 0:02:00]} Bxg4 {[%emt 0:01:23]} 21. Bxe4 {[%emt 0:00:06]} 1-0